bitfinex/quotes_BTCUSD_20240701
["timestamp","ask_amount","ask_price","bid_price","bid_amount"]
[1719834605487,2.09703147,62733.0,62732.0,0.001924]
[1719834605651,2.19794435,62733.0,62732.0,0.001924]
[1719834606001,1.87913335,62733.0,62732.0,0.001924]
[1719834606428,1.87813335,62733.0,62732.0,0.201924]
[1719834606822,1.89213335,62733.0,62732.0,0.201924]
[1719834606955,1.77722047,62733.0,62732.0,0.200924]
[1719834607181,1.77544744,62733.0,62732.0,0.000924]
[1719834607366,1.79344744,62733.0,62732.0,0.400924]
[1719834607582,1.79344744,62733.0,62732.0,0.420924]
[1719834607784,1.79393711,62733.0,62732.0,0.420924]
[1719834608102,1.78693711,62733.0,62732.0,0.420924]
[1719834608335,1.79093711,62733.0,62732.0,0.420924]
[1719834608540,1.79093711,62733.0,62732.0,0.400924]
[1719834608757,1.77593711,62733.0,62732.0,0.400924]
[1719834609165,1.78193711,62733.0,62732.0,0.401924]
[1719834609370,1.77593711,62733.0,62732.0,0.001924]
[1719834609792,1.78093711,62733.0,62732.0,0.001924]
[1719834609982,1.86283711,62733.0,62732.0,0.001924]
[1719834610228,1.780889,62733.0,62732.0,0.001924]
[1719834610429,1.9574152,62733.0,62732.0,0.000924]
[1719834610612,1.95741503,62733.0,62732.0,0.000924]
[1719834610910,1.97641503,62733.0,62732.0,0.000924]
[1719834611336,1.97041503,62733.0,62732.0,0.000924]
[1719834611932,1.89251503,62733.0,62732.0,0.200924]
[1719834612074,1.79170301,62733.0,62732.0,0.200924]
[1719834612271,1.77870301,62733.0,62732.0,0.200924]
[1719834612500,1.78970301,62733.0,62732.0,0.200924]
[1719834613485,1.708989,62733.0,62732.0,0.49782761]
[1719834613693,1.63145334,62733.0,62732.0,0.49782761]
[1719834615119,1.63145334,62733.0,62732.0,0.420924]
[1719834615879,1.31264234,62733.0,62732.0,0.577224]
[1719834616957,1.30164234,62733.0,62732.0,0.577224]
[1719834617153,0.98283134,62733.0,62732.0,0.778224]
[1719834617369,0.97883134,62733.0,62732.0,0.778224]
[1719834617684,0.97983134,62733.0,62732.0,0.778224]
[1719834617930,0.98083134,62733.0,62732.0,0.779224]
[1719834618145,0.97983134,62733.0,62732.0,0.778224]
[1719834618339,0.97983134,62733.0,62732.0,0.87904761]
[1719834618587,0.98083134,62733.0,62732.0,0.88004761]
[1719834618809,1.29964234,62733.0,62732.0,0.72374761]
[1719834619214,1.29864234,62733.0,62732.0,0.401924]
[1719834619578,1.29964234,62733.0,62732.0,0.404924]
[1719834619777,1.29864234,62733.0,62732.0,0.401924]
[1719834619981,1.2951937,62733.0,62732.0,0.401924]
[1719834620200,1.2961937,62733.0,62732.0,0.604924]
[1719834620378,1.218678,62733.0,62732.0,0.604924]
[1719834620575,1.29619353,62733.0,62732.0,0.404924]
[1719834620795,1.61500453,62733.0,62732.0,0.404924]
[1719834620996,1.61400453,62733.0,62732.0,0.401924]
[1719834621197,1.61300453,62733.0,62732.0,0.400924]
[1719834621611,1.61300453,62733.0,62732.0,0.401924]
[1719834621612,1.61400453,62733.0,62732.0,0.401924]
[1719834622019,1.61300453,62733.0,62732.0,0.420924]
[1719834622436,1.61400453,62733.0,62732.0,0.421924]
[1719834622635,1.61300453,62733.0,62732.0,0.421924]
[1719834622831,1.61300453,62733.0,62732.0,0.420924]
[1719834623037,1.61800453,62733.0,62732.0,0.420924]
[1719834623243,1.540489,62733.0,62732.0,0.421924]
[1719834623675,1.61824038,62733.0,62732.0,0.421924]
[1719834624271,0.98061838,62733.0,62732.0,0.774324]
[1719834629842,0.902867,62733.0,62732.0,0.774324]
[1719834630064,0.98151322,62733.0,62732.0,0.774324]
[1719834631455,0.99076898,62733.0,62732.0,0.774324]
[1719834631652,0.99076898,62733.0,62732.0,0.86656761]
[1719834631853,0.57195798,62733.0,62732.0,0.86656761]
[1719834632914,0.56695798,62733.0,62732.0,0.86656761]
[1719834633215,0.56305798,62733.0,62732.0,0.86756761]
[1719834633370,0.56405798,62733.0,62732.0,0.86856761]
[1719834634244,0.88286898,62733.0,62732.0,0.86856761]
[1719834634393,0.88286898,62733.0,62732.0,0.71616761]
[1719834634919,0.88286898,62733.0,62732.0,0.623924]
[1719834635118,1.20167998,62733.0,62732.0,0.623924]
[1719834636033,1.20067998,62733.0,62732.0,0.620924]
[1719834636200,1.19967998,62733.0,62732.0,0.620924]
[1719834636399,1.19776099,62733.0,62732.0,0.624924]
[1719834636602,1.19776099,62733.0,62732.0,0.625924]
[1719834637638,1.19776099,62733.0,62732.0,0.71867761]
[1719834637639,0.87894999,62733.0,62732.0,0.71867761]
[1719834637840,0.87894999,62733.0,62732.0,0.86817761]
[1719834638070,0.87994999,62733.0,62732.0,0.87117761]
[1719834638374,0.87994999,62733.0,62732.0,0.778424]
[1719834639535,0.87936417,62733.0,62732.0,0.778424]
[1719834640144,0.87912219,62733.0,62732.0,0.778424]
[1719834640386,0.88520543,62733.0,62732.0,0.778424]
[1719834642101,0.88520543,62733.0,62732.0,0.624924]
[1719834642739,1.18698728,62733.0,62732.0,0.624924]
[1719834642922,1.20406694,62733.0,62732.0,0.69126087]
[1719834643122,1.20406694,62733.0,62732.0,0.624924]
[1719834643317,1.19906694,62733.0,62732.0,0.624924]
[1719834644918,1.19906694,62733.0,62732.0,0.604924]
[1719834645124,1.19906694,62733.0,62732.0,0.404924]
[1719834645340,1.26986694,62733.0,62732.0,0.404924]
[1719834645518,1.58867794,62733.0,62732.0,0.004924]
[1719834645719,1.77472166,62733.0,62732.0,0.204924]
[1719834646015,1.77310514,62733.0,62732.0,0.201924]
[1719834646423,1.77310514,62733.0,62732.0,0.204924]
[1719834646829,1.77310514,62733.0,62732.0,0.203924]
[1719834646981,1.77610514,62733.0,62732.0,0.003924]
[1719834647191,1.95800514,62733.0,62732.0,0.003924]
[1719834647591,1.96300514,62733.0,62732.0,0.003924]
[1719834647792,1.88110514,62733.0,62732.0,0.003924]
[1719834648020,1.87310514,62733.0,62732.0,0.003924]
[1719834648243,1.88010514,62733.0,62732.0,0.000924]
[1719834648649,1.87310514,62733.0,62732.0,0.001924]
[1719834649051,1.87310514,62733.0,62732.0,0.000924]
[1719834649249,1.87391167,62733.0,62732.0,0.000924]
[1719834649462,1.87791167,62733.0,62732.0,0.000924]
[1719834650091,1.88891167,62733.0,62732.0,0.000924]
[1719834650900,2.05125065,62733.0,62732.0,0.000924]
[1719834651907,2.37006165,62733.0,62732.0,0.000924]
[1719834652483,2.3708141,62733.0,62732.0,0.000924]
[1719834652888,2.20237798,62733.0,62732.0,0.000924]
[1719834653172,2.37081416,62733.0,62732.0,0.000924]
[1719834655529,2.20237798,62733.0,62732.0,0.000924]
[1719834655734,2.36983269,62733.0,62732.0,0.000924]
[1719834656073,2.36983274,62733.0,62732.0,0.000924]
[1719834657059,2.57463274,62733.0,62732.0,0.000924]
[1719834657466,2.91225403,62733.0,62732.0,0.000924]
[1719834657673,2.93525403,62733.0,62732.0,0.000924]
[1719834658653,2.73045403,62733.0,62732.0,0.000924]
[1719834658848,2.93457349,62733.0,62732.0,0.000924]
[1719834659089,2.96197349,62733.0,62732.0,0.000924]
[1719834659457,2.97597349,62733.0,62732.0,0.000924]
[1719834660339,2.96497349,62733.0,62732.0,1e-06]
[1719834660555,0.1516,62731.0,62730.0,4.6e-07]
[1719834660670,0.66671091,62731.0,62730.0,4.6e-07]
[1719834660870,1.31998649,62731.0,62730.0,4.6e-07]
[1719834661079,2.27644949,62731.0,62730.0,4.6e-07]
[1719834661279,0.629839,62730.0,62729.0,4.6e-07]
[1719834661504,1.71771436,62730.0,62729.0,4.6e-07]
[1719834661737,2.05217158,62730.0,62729.0,4.6e-07]
[1719834661936,2.68982358,62730.0,62729.0,4.6e-07]
[1719834662341,2.85792358,62730.0,62729.0,4.6e-07]
[1719834662823,2.95369358,62730.0,62729.0,4.6e-07]
[1719834663048,0.946855,62723.0,62713.0,0.02750878]
[1719834663216,1.82489416,62723.0,62713.0,0.02750878]
[1719834663568,2.47825626,62723.0,62713.0,0.02750878]
[1719834663761,2.47825626,62723.0,62713.0,0.22750878]
[1719834664341,2.40921808,62723.0,62713.0,0.22750878]
[1719834664539,2.60602993,62723.0,62715.0,0.2]
[1719834664822,1.753796,62721.0,62720.0,0.00733922]
[1719834665021,2.04365063,62721.0,62720.0,0.00733922]
[1719834665244,2.21296367,62721.0,62720.0,0.00733922]
[1719834665573,2.29709325,62721.0,62720.0,0.00733922]
[1719834667057,2.30609325,62721.0,62720.0,0.00733922]
[1719834667355,2.39159325,62721.0,62720.0,0.00733922]
[1719834667609,2.41478809,62721.0,62720.0,0.00733922]
[1719834667829,2.61958809,62721.0,62720.0,0.00733922]
[1719834667994,2.62158809,62721.0,62720.0,0.00733922]
[1719834669135,2.62158809,62721.0,62720.0,0.00513922]
[1719834669886,2.49868809,62721.0,62720.0,0.00513922]
[1719834670692,2.40712365,62721.0,62720.0,0.00513922]
[1719834670889,2.49796218,62721.0,62720.0,0.00513922]
[1719834673091,3.36724018,62721.0,62720.0,0.00513922]
[1719834673289,3.24706518,62721.0,62720.0,0.00513922]
[1719834673696,3.23806518,62721.0,62720.0,0.00513922]
[1719834673913,3.1219809,62721.0,62720.0,0.00513922]
[1719834674114,3.1339809,62721.0,62720.0,0.00513922]
[1719834674569,3.1439809,62721.0,62720.0,0.00513922]
[1719834675072,1.753823,62720.0,62717.0,0.00924]
[1719834675280,4.03514654,62720.0,62717.0,0.00924]
[1719834675528,4.15275709,62720.0,62717.0,0.00924]
[1719834677093,4.15329002,62720.0,62717.0,0.00924]
[1719834677537,4.17629002,62720.0,62717.0,0.00924]
[1719834677740,3.33982664,62720.0,62717.0,0.00924]
[1719834678764,3.29140802,62720.0,62717.0,0.00924]
[1719834678970,2.95081184,62720.0,62717.0,0.00924]
[1719834680226,2.75277413,62720.0,62717.0,0.00924]
[1719834680431,2.95145805,62720.0,62717.0,0.00924]
[1719834680884,2.95145805,62720.0,62717.0,0.07624]
[1719834680885,2.56870005,62720.0,62717.0,0.07624]
[1719834681082,2.56870005,62720.0,62717.0,0.00924]
[1719834681290,2.65060005,62720.0,62717.0,0.00924]
[1719834682150,3.34256705,62720.0,62717.0,0.00924]
[1719834683171,3.2366124,62720.0,62717.0,0.00924]
[1719834683453,3.34359078,62720.0,62717.0,0.00924]
[1719834684013,3.33459078,62720.0,62717.0,0.00924]
[1719834684213,3.32059078,62720.0,62717.0,0.00924]
[1719834684521,3.34659078,62720.0,62717.0,0.00924]
[1719834684929,3.39867607,62720.0,62717.0,0.00924]
[1719834685891,4.92960207,62720.0,62717.0,0.00924]
[1719834686095,4.89760207,62720.0,62717.0,0.00924]
[1719834686500,4.89811123,62720.0,62717.0,0.00924]
[1719834686700,4.82907223,62720.0,62717.0,0.00924]
[1719834686918,3.62907223,62720.0,62717.0,0.00924]
[1719834687117,3.53714123,62720.0,62717.0,0.00924]
[1719834687762,3.23518123,62720.0,62717.0,0.00924]
[1719834687969,3.20558623,62720.0,62717.0,0.00924]
[1719834689983,3.20667845,62720.0,62717.0,0.00924]
[1719834690383,3.20667816,62720.0,62717.0,0.00924]
[1719834691588,3.12477816,62720.0,62717.0,0.00924]
[1719834691794,3.20667816,62720.0,62717.0,0.00924]
[1719834692950,2.92346942,62720.0,62717.0,0.00924]
[1719834693152,3.20672173,62720.0,62717.0,0.00924]
[1719834693403,2.072902,62714.0,62713.0,0.02750878]
[1719834693605,2.59183838,62714.0,62713.0,0.02750878]
[1719834693813,2.70433852,62714.0,62713.0,0.02750878]
[1719834694657,2.83909343,62714.0,62713.0,0.02750878]
[1719834695069,2.81109343,62714.0,62713.0,0.02750878]
[1719834695405,2.82509343,62714.0,62713.0,0.02750878]
[1719834695674,2.68199343,62714.0,62713.0,0.02750878]
[1719834696089,2.57709343,62714.0,62713.0,0.02750878]
[1719834696324,2.68849684,62714.0,62713.0,0.10350878]
[1719834696927,2.28768884,62714.0,62713.0,0.17520878]
[1719834697151,2.05068084,62714.0,62713.0,0.17520878]
[1719834697362,2.03668084,62714.0,62713.0,0.17520878]
[1719834697560,2.04568084,62714.0,62713.0,0.17520878]
[1719834697766,2.03168084,62714.0,62713.0,0.17520878]
[1719834698125,2.03668084,62714.0,62713.0,0.17520878]
[1719834698327,2.04568084,62714.0,62713.0,0.17520878]
[1719834698724,2.03168084,62714.0,62713.0,0.17520878]
[1719834699556,1.75577647,62714.0,62713.0,0.17520878]
[1719834699763,2.02367,62714.0,62713.0,0.17520878]
[1719834700167,2.03767,62714.0,62713.0,0.17520878]
[1719834701399,1.95577,62714.0,62713.0,0.37520878]
[1719834701577,1.95577,62714.0,62713.0,0.17520878]
[1719834702647,1.73292512,62714.0,62713.0,0.17520878]
[1719834702832,1.91889647,62714.0,62713.0,0.17520878]
[1719834703034,1.95550319,62714.0,62713.0,0.17520878]
[1719834703239,1.73292512,62714.0,62713.0,0.17520878]
[1719834703520,1.95550196,62714.0,62713.0,0.17520878]
[1719834704964,1.97481596,62714.0,62713.0,0.02750878]
[1719834705352,2.05671596,62714.0,62713.0,0.02750878]
[1719834705878,1.97481596,62714.0,62713.0,0.16970878]
[1719834706967,1.97481596,62714.0,62713.0,0.36970878]
[1719834708062,1.97481596,62714.0,62713.0,0.16970878]
[1719834708478,2.11521596,62714.0,62713.0,0.02750878]
[1719834708682,2.10271582,62714.0,62713.0,0.02750878]
[1719834708883,2.43410785,62714.0,62713.0,0.02750878]
[1719834709135,2.43352433,62714.0,62713.0,0.02750878]
[1719834709942,2.51542433,62714.0,62713.0,0.02750878]
[1719834712435,2.58145542,62714.0,62713.0,0.02750878]
[1719834715343,2.60445542,62714.0,62713.0,0.02750878]
[1719834716211,2.57822143,62714.0,62713.0,0.02750878]
[1719834716415,2.49422143,62714.0,62713.0,0.02750878]
[1719834717243,2.51722143,62714.0,62713.0,0.02750878]
[1719834718203,2.12214742,62714.0,62713.0,0.02750878]
[1719834718835,2.44105542,62714.0,62713.0,0.02750878]
[1719834719259,2.44087367,62714.0,62713.0,0.02750878]
[1719834719657,2.46387367,62714.0,62713.0,0.02750878]
[1719834721189,2.38193859,62714.0,62713.0,0.02750878]
[1719834721602,2.23992901,62714.0,62713.0,0.02750878]
[1719834721803,2.46380749,62714.0,62713.0,0.02750878]
[1719834722003,2.06299949,62714.0,62713.0,0.02750878]
[1719834722159,2.03999949,62714.0,62713.0,0.37400878]
[1719834722364,2.03999949,62714.0,62713.0,0.59400878]
[1719834722365,1.43943851,62714.0,62713.0,0.59400878]
[1719834722745,1.0070706,62714.0,62713.0,0.59400878]
[1719834722954,0.6881626,62714.0,62713.0,0.79400878]
[1719834723158,0.6242646,62714.0,62713.0,0.79400878]
[1719834723366,0.93068857,62714.0,62713.0,0.95634249]
[1719834723791,0.12441857,62714.0,62713.0,1.11868147]
[1719834723988,0.26987257,62714.0,62713.0,1.11868147]
[1719834724199,0.166454,62714.0,62713.0,1.11868147]
[1719834724394,0.87340446,62714.0,62713.0,0.95634249]
[1719834724656,0.87340446,62714.0,62713.0,0.79400878]
[1719834724841,1.19231246,62714.0,62713.0,0.79400878]
[1719834725223,1.15200344,62714.0,62713.0,0.79400878]
[1719834725434,1.13929587,62714.0,62713.0,0.79400878]
[1719834725636,1.14029587,62714.0,62713.0,0.79700878]
[1719834725991,1.13929587,62714.0,62713.0,0.84403765]
[1719834726151,1.13229587,62714.0,62713.0,0.84703765]
[1719834726341,1.13229587,62714.0,62713.0,0.79700878]
[1719834726543,1.13329587,62714.0,62713.0,0.80000878]
[1719834726995,1.13229587,62714.0,62713.0,0.79700878]
[1719834727409,1.116178,62714.0,62713.0,0.79700878]
[1719834727621,1.12893971,62714.0,62713.0,0.80000878]
[1719834728099,1.12817427,62714.0,62713.0,0.79700878]
[1719834728525,1.12817427,62714.0,62713.0,0.82041766]
[1719834728728,1.12817427,62714.0,62713.0,0.81741766]
[1719834729077,1.12817427,62714.0,62713.0,0.79400878]
[1719834729596,1.12817427,62714.0,62713.0,0.79700878]
[1719834729597,0.81026627,62714.0,62713.0,0.79700878]
[1719834729962,0.01199627,62714.0,62713.0,0.95634776]
[1719834730167,0.1713962,62715.0,62714.0,0.5613]
[1719834730534,0.159451,62715.0,62714.0,1.04480369]
[1719834730682,0.49029853,62715.0,62714.0,1.04480369]
[1719834731081,0.48990265,62715.0,62714.0,1.24480369]
[1719834731318,0.80880465,62715.0,62714.0,1.24480369]
[1719834731542,0.48990265,62715.0,62714.0,1.24480369]
[1719834731951,0.48990265,62715.0,62714.0,1.25480369]
[1719834732555,0.49090265,62715.0,62714.0,1.25780369]
[1719834733331,0.49190265,62715.0,62714.0,1.26380369]
[1719834733603,0.49090265,62715.0,62714.0,1.25780369]
[1719834733920,0.1732084,62715.0,62714.0,1.10797269]
[1719834734104,0.0137574,62715.0,62714.0,1.10797269]
[1719834734241,0.1732084,62715.0,62714.0,1.25680369]
[1719834734447,0.4921104,62715.0,62714.0,1.09446471]
[1719834734705,1.1299144,62715.0,62714.0,1.09446471]
[1719834735091,1.13720185,62715.0,62714.0,1.09446471]
[1719834735264,1.13720185,62715.0,62714.0,0.93563371]
[1719834737004,0.18042709,62715.0,62714.0,1.17987269]
[1719834737207,0.17313964,62715.0,62714.0,1.18987269]
[1719834737584,0.49204164,62715.0,62714.0,1.18987269]
[1719834739349,0.49204164,62715.0,62714.0,1.17987269]
[1719834739768,0.81094364,62715.0,62714.0,1.17987269]
[1719834740401,0.81088529,62715.0,62714.0,1.17987269]
[1719834740552,0.49198329,62715.0,62714.0,1.18987269]
[1719834740753,0.480353,62715.0,62714.0,1.17987269]
[1719834740964,0.4919834,62715.0,62714.0,1.17987269]
[1719834742943,0.8108854,62715.0,62714.0,1.09797269]
[1719834743072,1.1297874,62715.0,62714.0,0.93563371]
[1719834743431,1.12991244,62715.0,62714.0,0.93563371]
[1719834743864,0.81101044,62715.0,62714.0,0.93563371]
[1719834744358,0.81852397,62715.0,62714.0,0.93563371]
[1719834745494,0.49962197,62715.0,62714.0,1.09797269]
[1719834745670,0.49962197,62715.0,62714.0,1.10797269]
[1719834745821,0.49210844,62715.0,62714.0,1.10797269]
[1719834746496,0.480353,62715.0,62714.0,1.10797269]
[1719834746681,0.49176789,62715.0,62714.0,1.09797269]
[1719834747057,0.49176789,62715.0,62714.0,1.10797269]
[1719834749126,0.49176789,62715.0,62714.0,1.09797269]
[1719834749767,0.480353,62715.0,62714.0,1.09797269]
[1719834749967,0.49175732,62715.0,62714.0,1.09797269]
[1719834750803,0.81065932,62715.0,62714.0,0.93563371]
[1719834751042,0.81065932,62715.0,62714.0,0.7733]
[1719834751788,0.85946172,62715.0,62714.0,0.7733]
[1719834752303,0.85946172,62715.0,62714.0,0.8552]
[1719834753175,0.85978036,62715.0,62714.0,0.8552]
[1719834753703,0.85963965,62715.0,62714.0,0.95353841]
[1719834754570,0.85963965,62715.0,62714.0,0.87163841]
[1719834754747,0.85963965,62715.0,62714.0,0.95353841]
[1719834756282,0.799255,62715.0,62714.0,0.95353841]
[1719834756482,0.85959209,62715.0,62714.0,0.95353841]
[1719834756691,0.8595931,62715.0,62714.0,0.95353841]
[1719834757193,0.2217891,62715.0,62714.0,1.11587739]
[1719834757625,0.17306137,62715.0,62714.0,1.11587739]
[1719834759718,0.17276749,62715.0,62714.0,1.11587739]
[1719834763048,0.17291127,62715.0,62714.0,1.11587739]
[1719834766207,0.161451,62715.0,62714.0,1.11587739]
[1719834766396,0.49160169,62715.0,62714.0,1.03397739]
[1719834766818,0.17270029,62715.0,62714.0,1.03397739]
[1719834767380,0.17270029,62715.0,62714.0,0.96787739]
[1719834767573,0.49160229,62715.0,62714.0,0.89267739]
[1719834769417,0.49105243,62715.0,62714.0,0.89360139]
[1719834770798,0.80995443,62715.0,62714.0,0.73126241]
[1719834771063,0.85784049,62715.0,62714.0,0.81316241]
[1719834771198,0.8653492,62715.0,62714.0,0.87766241]
[1719834772894,0.8653492,62715.0,62714.0,0.73126241]
[1719834773047,1.3282512,62715.0,62714.0,0.73126241]
[1719834773614,1.6471532,62715.0,62714.0,0.212924]
[1719834773847,1.6471532,62715.0,62714.0,0.012924]
[1719834774042,1.6471532,62715.0,62714.0,0.412924]
[1719834774247,1.73964449,62715.0,62714.0,0.412924]
[1719834774794,1.74683962,62715.0,62714.0,0.412924]
[1719834775005,1.74583962,62715.0,62714.0,0.409924]
[1719834775155,1.74483962,62715.0,62714.0,0.400924]
[1719834775340,1.74883962,62715.0,62714.0,0.400924]
[1719834775543,1.75483962,62715.0,62714.0,0.421924]
[1719834775772,1.69625413,62715.0,62714.0,0.421924]
[1719834775970,1.75540022,62715.0,62714.0,0.421924]
[1719834777355,1.75540022,62715.0,62714.0,0.401924]
[1719834777568,1.75540022,62715.0,62714.0,0.421924]
[1719834778305,1.75540022,62715.0,62714.0,0.401924]
[1719834778513,1.75540022,62715.0,62714.0,0.421924]
[1719834779124,1.69625413,62715.0,62714.0,0.201924]
[1719834779324,1.75532011,62715.0,62714.0,0.001924]
[1719834779570,2.32807093,62715.0,62714.0,0.001924]
[1719834779774,2.32807371,62715.0,62714.0,0.001924]
[1719834781514,2.37791048,62715.0,62714.0,0.001924]
[1719834782278,2.45981048,62715.0,62714.0,0.001924]
[1719834782499,2.30523188,62715.0,62714.0,0.000924]
[1719834782704,2.29923188,62715.0,62714.0,0.000924]
[1719834782862,2.31323188,62715.0,62714.0,0.000924]
[1719834783272,2.40499777,62715.0,62714.0,0.000924]
[1719834783508,2.44199777,62715.0,62714.0,0.001924]
[1719834784224,2.42799777,62715.0,62714.0,0.001924]
[1719834784423,2.50167364,62715.0,62714.0,0.001924]
[1719834784631,2.82057564,62715.0,62714.0,0.001924]
[1719834784829,1.435086,62714.0,62713.0,7.8e-07]
[1719834784984,2.17893298,62714.0,62713.0,7.8e-07]
[1719834785186,2.23596074,62714.0,62713.0,7.8e-07]
[1719834785404,2.55486874,62714.0,62713.0,7.8e-07]
[1719834787493,2.56886874,62714.0,62713.0,7.8e-07]
[1719834788120,2.58286874,62714.0,62713.0,7.8e-07]
[1719834788319,2.56886874,62714.0,62713.0,7.8e-07]
[1719834788962,2.58286874,62714.0,62713.0,7.8e-07]
[1719834793800,2.84695874,62714.0,62713.0,7.8e-07]
[1719834798136,2.215099,62711.0,62710.0,0.3]
[1719834798337,3.74787475,62711.0,62710.0,0.3]
[1719834798535,3.71409025,62711.0,62710.0,0.3]
[1719834798720,3.57788725,62711.0,62710.0,0.3]
[1719834798923,3.35165425,62711.0,62710.0,0.3]
[1719834799352,3.40121816,62711.0,62710.0,0.3]
[1719834799555,2.40702185,62711.0,62710.0,0.3]
[1719834799882,2.50292185,62711.0,62710.0,0.3]
[1719834800284,2.98558485,62711.0,62710.0,0.3]
[1719834801106,2.97158485,62711.0,62710.0,0.3]
[1719834801286,2.98558485,62711.0,62710.0,0.3]
[1719834801701,2.98558485,62711.0,62710.0,0.300924]
[1719834801872,2.48892185,62711.0,62710.0,0.300924]
[1719834802066,2.48397339,62711.0,62710.0,0.300924]
[1719834802274,2.63794857,62711.0,62710.0,0.300924]
[1719834802967,2.70527834,62711.0,62710.0,0.300924]
[1719834803290,3.02420134,62711.0,62710.0,0.300924]
[1719834805535,3.02434556,62711.0,62710.0,0.300924]
[1719834808791,3.02423012,62711.0,62710.0,0.300924]
[1719834809005,2.97466621,62711.0,62710.0,0.300924]
[1719834811802,2.82066225,62711.0,62710.0,0.300924]
[1719834812007,2.97450207,62711.0,62710.0,0.300924]
[1719834814309,2.39815007,62711.0,62710.0,0.300924]
[1719834814513,2.4267203,62711.0,62710.0,0.300924]
[1719834815280,2.42628268,62711.0,62710.0,0.300924]
[1719834815706,2.44928268,62711.0,62710.0,0.300924]
[1719834816498,2.77543368,62711.0,62710.0,0.300924]
[1719834818594,2.77550982,62711.0,62710.0,0.300924]
[1719834818815,2.79443282,62711.0,62710.0,0.300924]
[1719834820394,2.72614382,62711.0,62710.0,0.300924]
[1719834821184,2.70611782,62711.0,62710.0,0.300924]
[1719834821854,2.55263948,62711.0,62710.0,0.300924]
[1719834821996,2.70564976,62711.0,62710.0,0.300924]
[1719834822405,2.7349534,62711.0,62710.0,0.300924]
[1719834824921,3.05361375,62711.0,62710.0,0.300924]
[1719834825583,3.10694352,62711.0,62710.0,0.300924]
[1719834828350,3.10730987,62711.0,62710.0,0.300924]
[1719834830227,3.16052972,62711.0,62710.0,0.300924]
[1719834831355,3.00741405,62711.0,62710.0,0.300924]
[1719834831575,3.15979303,62711.0,62710.0,0.300924]
[1719834834748,3.16146698,62711.0,62710.0,0.300924]
[1719834835151,3.16146737,62711.0,62710.0,0.300924]
[1719834835422,2.84254437,62711.0,62710.0,0.300924]
[1719834835663,2.78932452,62711.0,62710.0,0.300924]
[1719834836095,2.79016452,62711.0,62710.0,0.300924]
[1719834836436,3.10908752,62711.0,62710.0,0.300924]
[1719834836670,2.79016452,62711.0,62710.0,0.300924]
[1719834837673,3.10908752,62711.0,62710.0,0.300924]
[1719834837923,3.09678761,62711.0,62710.0,0.300924]
[1719834838131,3.10887926,62711.0,62710.0,0.300924]
[1719834838756,2.78995626,62711.0,62710.0,0.300924]
[1719834839768,3.10887926,62711.0,62710.0,0.300924]
[1719834840849,3.10888641,62711.0,62710.0,0.300924]
[1719834843673,3.10924538,62711.0,62710.0,0.300924]
[1719834846834,2.9550342,62711.0,62710.0,0.300924]
[1719834847036,3.10927597,62711.0,62710.0,0.300924]
[1719834847458,2.9550342,62711.0,62710.0,0.300924]
[1719834848826,3.0476827,62711.0,62710.0,0.300924]
[1719834849143,3.10090255,62711.0,62710.0,0.29138739]
[1719834849346,3.16248256,62711.0,62710.0,0.29138739]
[1719834852074,3.02308256,62711.0,62710.0,0.29138739]
[1719834852299,2.91653294,62711.0,62710.0,0.29138739]
[1719834852501,2.84954194,62711.0,62710.0,0.29138739]
[1719834853259,2.69531343,62711.0,62710.0,0.29138739]
[1719834853611,2.75801343,62711.0,62710.0,0.29138739]
[1719834854920,2.91126318,62711.0,62710.0,0.29138739]
[1719834855910,2.98986318,62711.0,62710.0,0.29138739]
[1719834856860,3.04308303,62711.0,62710.0,0.29138739]
[1719834857368,3.04305567,62711.0,62710.0,0.29138739]
[1719834857722,2.96115567,62711.0,62710.0,0.29138739]
[1719834857965,3.04305567,62711.0,62710.0,0.29138739]
[1719834859705,2.52961282,62711.0,62710.0,0.29138739]
[1719834860914,2.53015026,62711.0,62710.0,0.29138739]
[1719834861226,2.37639043,62711.0,62710.0,0.29138739]
[1719834861401,2.53035687,62711.0,62710.0,0.29138739]
[1719834862821,2.67655687,62711.0,62710.0,0.29138739]
[1719834863979,2.67650605,62711.0,62710.0,0.29138739]
[1719834867490,2.67692316,62711.0,62710.0,0.29138739]
[1719834868090,2.99584616,62711.0,62710.0,0.29138739]
[1719834868283,2.67692316,62711.0,62710.0,0.29138739]
[1719834868486,4.55044316,62711.0,62710.0,0.29138739]
[1719834868939,4.86936616,62711.0,62710.0,0.29138739]
[1719834869183,4.75676816,62711.0,62710.0,0.29138739]
[1719834869388,4.74247116,62711.0,62710.0,0.29138739]
[1719834870353,4.89158101,62711.0,62710.0,0.29138739]
[1719834870559,4.94424596,62711.0,62710.0,0.29138739]
[1719834873777,4.94458403,62711.0,62710.0,0.29138739]
[1719834874192,4.93245028,62711.0,62710.0,0.29138739]
[1719834874394,4.94474233,62711.0,62710.0,0.29138739]
[1719834875024,4.65400033,62711.0,62710.0,0.29138739]
[1719834875289,4.63465433,62711.0,62710.0,0.29138739]
[1719834875498,4.57075433,62711.0,62710.0,0.29138739]
[1719834875668,4.50171533,62711.0,62710.0,0.29138739]
[1719834877037,4.50187075,62711.0,62710.0,0.29138739]
[1719834877240,4.5019596,62711.0,62710.0,0.26238739]
[1719834877700,4.5654596,62711.0,62710.0,3.9e-07]
[1719834877902,5.41714446,62710.0,62709.0,5.12647378]
[1719834878038,5.89849642,62710.0,62709.0,5.12647378]
[1719834878243,5.90549294,62710.0,62709.0,5.12647378]
[1719834878700,5.67258528,62710.0,62709.0,5.12647378]
[1719834878865,5.55919028,62710.0,62709.0,5.12647378]
[1719834879370,5.61929028,62710.0,62709.0,5.12647378]
[1719834879547,5.78749028,62710.0,62709.0,4.96065378]
[1719834879764,6.42785472,62710.0,62709.0,4.18663378]
[1719834879972,6.48541938,62710.0,62709.0,4.18663378]
[1719834880215,6.49941938,62710.0,62709.0,4.18663378]
[1719834880415,6.71272155,62710.0,62709.0,4.18663378]
[1719834880616,7.11843486,62710.0,62709.0,4.18663378]
[1719834880816,7.13243486,62710.0,62709.0,4.18663378]
[1719834881227,7.11843486,62710.0,62709.0,4.18663378]
[1719834881430,6.89768566,62710.0,62709.0,4.18514677]
[1719834882657,6.89768566,62710.0,62709.0,4.13414677]
[1719834882861,6.89768566,62710.0,62709.0,4.11614677]
[1719834883211,7.59768566,62710.0,62709.0,4.11614677]
[1719834883410,7.59768566,62710.0,62709.0,4.03814677]
[1719834883653,6.89743465,62710.0,62709.0,4.00414677]
[1719834883799,6.89743465,62710.0,62709.0,3.97914677]
[1719834884303,6.89743465,62710.0,62709.0,3.92814677]
[1719834884484,6.89743465,62710.0,62709.0,3.90458161]
[1719834884684,6.89743465,62710.0,62709.0,3.87658161]
[1719834885704,6.89743465,62710.0,62709.0,3.82458161]
[1719834886667,7.59743465,62710.0,62709.0,3.82458161]